fUSD/lending_fUSD_20250226
["ID","MTS","AMOUNT","RATE_DAILY","PERIOD"]
[354612734,1740595911671,-500.0,0.00037808,14]
[354612736,1740595911680,-2771.33,0.00037808,14]
[354612738,1740595911691,-596.94387905,0.00037808,14]
[354612740,1740595911701,-500.0,0.00037808,14]
[354612742,1740595911711,-1596.62,0.00037808,14]
[354612744,1740595911720,-1876.78,0.00037808,14]
[354612746,1740595911730,-1560.4,0.00037808,14]
[354612748,1740595911739,-6192.85,0.00037808,14]
[354612750,1740595911749,-647.32,0.00037808,14]
[354612752,1740595911758,-500.0,0.00037808,14]
[354612754,1740595911767,-1726.29,0.00037808,14]
[354612756,1740595911777,-2725.95,0.00037808,14]
[354612758,1740595911787,-1676.26,0.00037808,14]
[354612760,1740595911796,-563.72,0.00037808,14]
[354612762,1740595911805,-944.42,0.00037808,14]
[354612764,1740595911815,-3837.57,0.00037808,14]
[354612766,1740595911825,-500.0,0.00037808,14]
[354612768,1740595911835,-1361.35,0.00037808,14]
[354612770,1740595911845,-1302.57,0.00037808,14]
[354612772,1740595911855,-688.53,0.00037808,14]
[354612774,1740595911867,-11693.75,0.00037808,14]
[354612776,1740595911876,-2812.52,0.00037808,14]
[354612778,1740595911905,-861.86,0.00037808,14]
[354612780,1740595911914,-3063.11,0.00037808,14]
[354612781,1740595911923,-1132.99,0.00037808,14]
[354612783,1740595911933,-291.52398595,0.00037808,14]
[354612785,1740595911942,-2332.02,0.00037808,14]
[354612787,1740595911957,-3032.5,0.00037808,14]
[354612789,1740595911967,-1403.52,0.00037808,14]
[354612791,1740595911976,-2514.92,0.00037808,14]
[354612793,1740595911986,-840.17,0.00037808,14]
[354612795,1740595912000,-3285.15,0.00037808,14]
[354612798,1740595912012,-1217.25,0.00037808,14]
[354612800,1740595912021,-2864.92,0.00037808,14]
[354612801,1740595912031,-829.58,0.00037808,14]
[354612803,1740595912041,-521.32,0.00037808,14]
[354612805,1740595912051,-1548.49,0.00037808,14]
[354612807,1740595912060,-1797.4,0.00037808,14]
[354612809,1740595912070,-500.0,0.00037808,14]
[354612811,1740595912080,-3783.79,0.00037808,14]
[354612813,1740595912090,-500.0,0.00037808,14]
[354612815,1740595912100,-1141.09,0.00037808,14]
[354612817,1740595912110,-577.91,0.00037808,14]
[354612819,1740595912121,-6297.9,0.00037808,14]
[354612821,1740595912131,-2194.13,0.00037808,14]
[354612831,1740595912209,-2625.14,0.00037808,14]
[354612833,1740595912218,-1289.77,0.00037808,14]
[354612835,1740595912228,-564.43,0.00037808,14]
[354612837,1740595912237,-2622.68,0.00037808,14]
[354612839,1740595912247,-3149.85,0.00037808,14]
[354612841,1740595912256,-806.4,0.00037808,14]
[354612843,1740595912266,-2632.85,0.00037808,14]
[354612845,1740595912275,-2112.2,0.00037808,14]
[354612847,1740595912287,-3833.32,0.00037808,14]
[354612849,1740595912296,-1648.8,0.00037808,14]
[354612850,1740595912305,-500.0,0.00037808,14]
[354612852,1740595912315,-5487.93,0.00037808,14]
[354612854,1740595912325,-2311.59,0.00037808,14]
[354612856,1740595912335,-974.58,0.00037808,14]
[354612859,1740595912345,-565.43,0.00037808,14]
[354612860,1740595912355,-1343.0,0.00037808,14]
[354612862,1740595912365,-11841.49,0.00037808,14]
[354612864,1740595912375,-567.13,0.00037808,14]
[354612866,1740595912384,-3413.54,0.00037808,14]
[354612868,1740595912394,-1833.27,0.00037808,14]
[354612870,1740595912403,-995.26,0.00037808,14]
[354612872,1740595912413,-1238.69,0.00037808,14]
[354612874,1740595912422,-3517.26,0.00037808,14]
[354612876,1740595912432,-1700.63,0.00037808,14]
[354612878,1740595912441,-7439.57,0.00037808,14]
[354612880,1740595912451,-2752.94,0.00037808,14]
[354612882,1740595912460,-4507.25,0.00037808,14]
[354612884,1740595912470,-1862.26,0.00037808,14]
[354612886,1740595912479,-1154.79,0.00037808,14]
[354612888,1740595912489,-639.34,0.00037808,14]
[354612890,1740595912498,-1572.85,0.00037808,14]
[354612892,1740595912508,-500.0,0.00037808,14]
[354612894,1740595912517,-3421.4,0.00037808,14]
[354612896,1740595912526,-1778.87,0.00037808,14]
[354612898,1740595912535,-1616.96,0.00037808,14]
[354612900,1740595912544,-696.16,0.00037808,14]
[354612902,1740595912553,-9182.73,0.00037808,14]
[354612904,1740595912563,-682.72,0.00037808,14]
[354612906,1740595912572,-683.41,0.00037808,14]
[354612908,1740595912581,-6709.93,0.00037808,14]
[354612910,1740595912591,-317.5978861,0.00037808,14]
[354612912,1740595912600,-4316.65,0.00037808,14]
[354612914,1740595912609,-682.23,0.00037808,14]
[354612916,1740595912620,-546.58,0.00037808,14]
[354612918,1740595912630,-3317.95,0.00037808,14]
[354612920,1740595912639,-1576.59,0.00037808,14]
[354612922,1740595912648,-604.02,0.00037808,14]
[354612924,1740595912658,-500.0,0.00037808,14]
[354612926,1740595912667,-876.15,0.00037808,14]
[354612928,1740595912677,-1898.38,0.00037808,14]
[354612930,1740595912687,-3418.9,0.00037808,14]
[354612932,1740595912696,-749.16,0.00037808,14]
[354612934,1740595912705,-500.0,0.00037808,14]
[354612936,1740595912715,-2938.03,0.00037808,14]
[354612938,1740595912724,-1228.02,0.00037808,14]
[354612940,1740595912734,-2258.95,0.00037808,14]
[354612941,1740595912743,-1052.77,0.00037808,14]
[354612943,1740595912752,-500.0,0.00037808,14]
[354612945,1740595912761,-932.43,0.00037808,14]
[354612947,1740595912771,-1087.18,0.00037808,14]
[354612949,1740595912780,-239.90217814,0.00037808,14]
[354612951,1740595912789,-3770.5,0.00037808,14]
[354612953,1740595912798,-4443.37,0.00037808,14]
[354612955,1740595912807,-4370.98,0.00037808,14]
[354612957,1740595912818,-841.55,0.00037808,14]
[354612959,1740595912827,-1077.8,0.00037808,14]
[354612961,1740595912837,-1662.55,0.00037808,14]
[354612963,1740595912846,-1684.75,0.00037808,14]
[354612965,1740595912855,-732.3,0.00037808,14]
[354612967,1740595912866,-669.42,0.00037808,14]
[354612969,1740595912875,-2153.43,0.00037808,14]
[354612971,1740595912884,-2455.03,0.00037808,14]
[354612973,1740595912894,-500.0,0.00037808,14]
[354612975,1740595912903,-555.94,0.00037808,14]
[354612977,1740595912913,-8707.22,0.00037808,14]
[354612979,1740595912922,-661.77,0.00037808,14]
[354612981,1740595912932,-1962.86,0.00037808,14]
[354612983,1740595912941,-1465.58,0.00037808,14]
[354612985,1740595912954,-14121.36,0.00037808,14]
[354612987,1740595912964,-500.0,0.00037808,14]
[354612989,1740595912973,-3029.66,0.00037808,14]
[354612991,1740595912983,-3158.55,0.00037808,14]
[354612993,1740595912995,-1124.82,0.00037808,14]
[354612995,1740595913005,-677.06,0.00037808,14]
[354612997,1740595913014,-1234.59,0.00037808,14]
[354612999,1740595913024,-1087.29,0.00037808,14]
[354613001,1740595913033,-1184.83,0.00037808,14]
[354613003,1740595913042,-766.23,0.00037808,14]
[354613005,1740595913052,-500.0,0.00037808,14]
[354613006,1740595913061,-1001.3,0.00037808,14]
[354613008,1740595913071,-617.69,0.00037808,14]
[354613010,1740595913081,-1731.67,0.00037808,14]
[354613012,1740595913091,-3138.97,0.00037808,14]
[354613014,1740595913100,-527.05,0.00037808,14]
[354613016,1740595913109,-1244.63,0.00037808,14]
[354613018,1740595913121,-850.11,0.00037808,14]
[354613020,1740595913131,-2099.68,0.00037808,14]
[354613022,1740595913140,-1394.32,0.00037808,14]
[354613024,1740595913149,-3802.94,0.00037808,14]
[354613026,1740595913159,-1086.92,0.00037808,14]
[354613028,1740595913169,-1256.63,0.00037808,14]
[354613030,1740595913178,-1776.24,0.00037808,14]
[354613032,1740595913187,-772.03,0.00037808,14]
[354613034,1740595913197,-500.0,0.00037808,14]
[354613036,1740595913206,-773.62,0.00037808,14]
[354613038,1740595913215,-666.36,0.00037808,14]
[354613040,1740595913224,-500.0,0.00037808,14]
[354613042,1740595913233,-500.0,0.00037808,14]
[354613043,1740595913242,-1317.17,0.00037808,14]
[354613046,1740595913252,-500.0,0.00037808,14]
[354613047,1740595913262,-2961.3,0.00037808,14]
[354613049,1740595913273,-4383.06,0.00037808,14]
[354613051,1740595913283,-1264.32,0.00037808,14]
[354613053,1740595913294,-1507.85,0.00037808,14]
[354613055,1740595913303,-1388.89,0.00037808,14]
[354613058,1740595913313,-556.93,0.00037808,14]
[354613060,1740595913323,-3155.81,0.00037808,14]
[354613061,1740595913333,-561.98,0.00037808,14]
[354613063,1740595913342,-2270.77,0.00037808,14]
[354613065,1740595913352,-593.99,0.00037808,14]
[354613067,1740595913364,-214.26,0.00037822,2]
[354613069,1740595913373,-254656.88286242,0.00037899,2]
[354613071,1740595913383,-151.0,0.00037899,7]
[354613073,1740595913392,-151.254383,0.00037899,3]
[354613075,1740595913401,-151.0,0.00037899,7]
[354613077,1740595913410,-151.0,0.00037899,7]
[354613079,1740595913419,-600.0,0.000379,13]
[354613081,1740595913428,-620.42,0.00037913,120]
[354613083,1740595913438,-500.0,0.00037977,120]
[354613085,1740595913447,-291.57052636,0.00037982,2]
[354613087,1740595913456,-2175.17610297,0.00038,2]
[354613089,1740595913465,-208.0,0.0003808,2]
[354613091,1740595913475,-2142.0,0.00038082,14]
[354613093,1740595913484,-1232.0,0.00038082,14]
[354613095,1740595913493,-672.636069,0.00038082,14]
[354613097,1740595913502,-500.0,0.00038082,14]
[354613099,1740595913511,-1501.590989,0.00038082,14]
[354613101,1740595913521,-676.71,0.00038082,14]
[354613103,1740595913530,-500.0,0.00038082,14]
[354613105,1740595913539,-870.39,0.00038082,14]
[354613107,1740595913549,-1090.2,0.00038082,14]
[354613109,1740595913558,-1069.27,0.00038082,14]
[354613111,1740595913567,-814.89,0.00038082,14]
[354613113,1740595913576,-500.0,0.00038082,14]
[354613114,1740595913585,-500.0,0.00038082,14]
[354613115,1740595913594,-1150.39,0.00038082,14]
[354613116,1740595913603,-500.0,0.00038082,14]
[354613117,1740595913614,-500.0,0.00038082,14]
[354613118,1740595913623,-500.0,0.00038082,14]
[354613119,1740595913633,-701.36,0.00038082,14]
[354613120,1740595913643,-841.82,0.00038082,14]
[354613121,1740595913653,-500.0,0.00038082,14]
[354613122,1740595913663,-670.19,0.00038082,14]
[354613123,1740595913672,-300.0,0.00038082,14]
[354613124,1740595913681,-1844.05,0.00038082,14]
[354613125,1740595913691,-500.0,0.00038082,14]
[354613126,1740595913700,-747.92,0.00038082,14]
[354613127,1740595913709,-835.83,0.00038082,14]
[354613129,1740595913719,-738.6,0.00038082,14]
[354613130,1740595913729,-1533.87,0.00038082,14]
[354613132,1740595913738,-1414.25,0.00038082,14]
[354613134,1740595913748,-865.08,0.00038082,14]
[354613136,1740595913757,-633.98,0.00038082,14]
[354613138,1740595913767,-500.0,0.00038082,14]
[354613140,1740595913776,-600.33,0.00038082,14]
[354613142,1740595913786,-500.0,0.00038082,14]
[354613144,1740595913796,-580.36,0.00038082,14]
[354613146,1740595913806,-742.35,0.00038082,14]
[354613148,1740595913816,-732.49,0.00038082,14]
[354613150,1740595913825,-527.1,0.00038082,14]
[354613152,1740595913834,-500.0,0.00038082,14]
[354613153,1740595913843,-935.03,0.00038082,14]
[354613156,1740595913853,-543.41,0.00038082,14]
[354613157,1740595913864,-500.0,0.00038082,14]
[354613159,1740595913873,-500.0,0.00038082,14]
[354613161,1740595913882,-581.31,0.00038082,14]
[354613162,1740595913892,-689.42,0.00038082,14]
[354613164,1740595913905,-689.49,0.00038082,14]
[354613166,1740595913914,-571.34,0.00038082,14]
[354613168,1740595913924,-696.87,0.00038082,14]
[354613170,1740595913933,-1290.39,0.00038082,14]
[354613172,1740595913943,-546.44,0.00038082,14]
[354613174,1740595913956,-500.0,0.00038082,14]
[354613176,1740595913965,-594.86,0.00038082,14]
[354613178,1740595913975,-635.18,0.00038082,14]
[354613180,1740595913984,-500.0,0.00038082,14]
[354613182,1740595913995,-858.4,0.00038082,14]
[354613184,1740595914008,-617.43,0.00038082,14]
[354613186,1740595914016,-665.21,0.00038082,14]
[354613188,1740595914025,-500.0,0.00038082,14]
[354613190,1740595914034,-1850.02,0.00038082,14]
[354613192,1740595914045,-500.0,0.00038082,14]
[354613194,1740595914054,-1161.63,0.00038082,14]
[354613196,1740595914063,-1036.04,0.00038082,14]
[354613198,1740595914072,-2240.29,0.00038082,14]
[354613199,1740595914082,-500.0,0.00038082,14]
[354613201,1740595914091,-608.93,0.00038082,14]
[354613203,1740595914100,-500.0,0.00038082,14]
[354613205,1740595914109,-2310.8,0.00038082,14]
[354613207,1740595914121,-500.0,0.00038082,14]
[354613209,1740595914131,-500.0,0.00038082,14]
[354613211,1740595914140,-500.0,0.00038082,14]
[354613213,1740595914150,-1018.81,0.00038082,14]
[354613215,1740595914159,-871.69,0.00038082,14]
[354613217,1740595914169,-500.0,0.00038082,14]
[354613219,1740595914178,-500.0,0.00038082,14]
[354613221,1740595914188,-1006.27,0.00038082,14]
[354613223,1740595914197,-595.91,0.00038082,14]
[354613225,1740595914207,-1116.49,0.00038082,14]
[354613227,1740595914216,-641.45,0.00038082,14]
[354613229,1740595914226,-500.0,0.00038082,14]
[354613231,1740595914236,-772.83,0.00038082,14]
[354613233,1740595914245,-1308.99,0.00038082,14]
[354613235,1740595914255,-935.7,0.00038082,14]
[354613237,1740595914264,-872.15,0.00038082,14]
[354613239,1740595914274,-500.0,0.00038082,14]
[354613241,1740595914283,-500.0,0.00038082,14]
[354613243,1740595914293,-649.25,0.00038082,14]
[354613245,1740595914303,-500.0,0.00038082,14]
[354613247,1740595914312,-1082.33,0.00038082,14]
[354613249,1740595914322,-513.39,0.00038082,14]
[354613251,1740595914332,-500.0,0.00038082,14]
[354613253,1740595914341,-1176.81,0.00038082,14]
[354613255,1740595914351,-1686.11,0.00038082,14]
[354613257,1740595914360,-538.09,0.00038082,14]
[354613259,1740595914372,-500.0,0.00038082,14]
[354613261,1740595914381,-547.24,0.00038082,14]
[354613263,1740595914391,-629.25,0.00038082,14]
[354613265,1740595914400,-811.61,0.00038082,14]
[354613267,1740595914410,-1804.38,0.00038082,14]
[354613269,1740595914419,-969.08,0.00038082,14]
[354613270,1740595914428,-2234.9,0.00038082,14]
[354613272,1740595914439,-877.13,0.00038082,14]
[354613274,1740595914448,-582.64,0.00038082,14]
[354613276,1740595914457,-500.0,0.00038082,14]
[354613278,1740595914466,-500.0,0.00038082,14]
[354613280,1740595914475,-500.0,0.00038082,14]
[354613282,1740595914485,-500.0,0.00038082,14]
[354613284,1740595914494,-1855.35,0.00038082,14]
[354613286,1740595914504,-1019.59,0.00038082,14]
[354613288,1740595914513,-2120.11,0.00038082,14]
[354613290,1740595914523,-1021.29,0.00038082,14]
[354613292,1740595914532,-1613.94,0.00038082,14]
[354613294,1740595914542,-572.27,0.00038082,14]
[354613296,1740595914551,-1105.78,0.00038082,14]
[354613298,1740595914561,-500.0,0.00038082,14]
[354613300,1740595914570,-982.48,0.00038082,14]
[354613302,1740595914580,-2258.29,0.00038082,14]
[354613304,1740595914590,-500.0,0.00038082,14]
[354613306,1740595914600,-500.0,0.00038082,14]
[354613308,1740595914609,-1496.14,0.00038082,14]
[354613310,1740595914620,-782.62,0.00038082,14]
[354613312,1740595914631,-1313.98,0.00038082,14]
[354613314,1740595914641,-633.15,0.00038082,14]
[354613316,1740595914651,-500.0,0.00038082,14]
[354613318,1740595914660,-1614.67,0.00038082,14]
[354613320,1740595914670,-777.94,0.00038082,14]
[354613322,1740595914680,-1119.74,0.00038082,14]
[354613324,1740595914690,-630.05,0.00038082,14]
[354613326,1740595914699,-500.0,0.00038082,14]
[354613328,1740595914709,-1550.01,0.00038082,14]
[354613330,1740595914719,-500.0,0.00038082,14]
[354613332,1740595914728,-898.54,0.00038082,14]
[354613334,1740595914738,-986.29,0.00038082,14]
[354613336,1740595914748,-666.5,0.00038082,14]
[354613338,1740595914758,-1800.45,0.00038082,14]
[354613340,1740595914767,-1038.19,0.00038082,14]
[354613342,1740595914777,-722.35,0.00038082,14]
[354613344,1740595914786,-777.79,0.00038082,14]
[354613346,1740595914797,-1016.47,0.00038082,14]
[354613348,1740595914807,-583.31,0.00038082,14]
[354613350,1740595914818,-746.65,0.00038082,14]
[354613352,1740595914828,-529.67,0.00038082,14]
[354613354,1740595914838,-500.0,0.00038082,14]
[354613355,1740595914850,-500.0,0.00038082,14]
[354613357,1740595914861,-806.05,0.00038082,14]
[354613360,1740595914881,-886.7,0.00038082,14]
[354613362,1740595914892,-820.28,0.00038082,14]
[354613363,1740595914905,-1501.14,0.00038082,14]
[354613366,1740595914916,-500.0,0.00038082,14]
[354613367,1740595914928,-921.34,0.00038082,14]
[354613369,1740595914939,-500.0,0.00038082,14]
[354613371,1740595914955,-699.59,0.00038082,14]
[354613373,1740595914968,-1003.76,0.00038082,14]
[354613375,1740595914980,-500.0,0.00038082,14]
[354613378,1740595914995,-1495.63,0.00038082,14]
[354613379,1740595915011,-834.44,0.00038082,14]
[354613382,1740595915024,-831.3,0.00038082,14]
[354613384,1740595915037,-675.74,0.00038082,14]
[354613385,1740595915049,-917.03,0.00038082,14]
[354613388,1740595915063,-551.68,0.00038082,14]
[354613390,1740595915075,-681.62,0.00038082,14]
[354613391,1740595915087,-1958.47,0.00038082,14]
[354613393,1740595915100,-1067.6,0.00038082,14]
[354613395,1740595915112,-500.0,0.00038082,14]
[354613398,1740595915136,-636.63,0.00038082,14]
[354613400,1740595915148,-1007.51,0.00038082,14]
[354613402,1740595915160,-500.0,0.00038082,14]
[354613404,1740595915177,-826.67,0.00038082,14]
[354613406,1740595915189,-532.65,0.00038082,14]
[354613408,1740595915202,-1255.98,0.00038082,14]
[354613410,1740595915213,-500.0,0.00038082,14]
[354613412,1740595915225,-1084.65,0.00038082,14]
[354613414,1740595915236,-510.04,0.00038082,14]
[354613416,1740595915247,-1101.48,0.00038082,14]
[354613418,1740595915260,-634.72,0.00038082,14]
[354613420,1740595915271,-842.79,0.00038082,14]
[354613422,1740595915283,-861.46,0.00038082,14]
[354613424,1740595915295,-500.0,0.00038082,14]
[354613426,1740595915306,-765.4,0.00038082,14]
[354613428,1740595915317,-604.9,0.00038082,14]
[354613430,1740595915327,-315.31628893,0.00038082,14]
[354613431,1740595915336,-1116.67,0.00038082,14]
[354613434,1740595915347,-500.0,0.00038082,14]
[354613436,1740595915358,-1441.7,0.00038082,14]
[354613437,1740595915374,-754.28,0.00038082,14]
[354613439,1740595915386,-929.23,0.00038082,14]
[354613442,1740595915398,-1403.66,0.00038082,14]
[354613444,1740595915409,-718.11,0.00038082,14]
[354613445,1740595915421,-1217.5,0.00038082,14]
[354613447,1740595915432,-1107.15,0.00038082,14]
[354613449,1740595915444,-1834.12,0.00038082,14]
[354613452,1740595915456,-1996.52,0.00038082,14]
[354613453,1740595915467,-902.19,0.00038082,14]
[354613455,1740595915478,-561.55,0.00038082,14]
[354613457,1740595915490,-565.94,0.00038082,14]
[354613460,1740595915502,-466.70549506,0.00038082,14]
[354613461,1740595915513,-500.0,0.00038082,14]
[354613463,1740595915525,-563.43,0.00038082,14]
[354613466,1740595915537,-1467.19,0.00038082,14]
[354613468,1740595915548,-1321.18,0.00038082,14]
[354613470,1740595915559,-1902.42,0.00038082,14]
[354613472,1740595915569,-500.0,0.00038082,14]
[354613473,1740595915581,-1140.97,0.00038082,14]
[354613475,1740595915592,-528.46,0.00038082,14]
[354613477,1740595915604,-500.0,0.00038082,14]
[354613480,1740595915617,-651.71,0.00038082,14]
[354613482,1740595915628,-1073.87,0.00038082,14]
[354613484,1740595915638,-1235.9,0.00038082,14]
[354613486,1740595915650,-583.0,0.00038082,14]
[354613488,1740595915660,-642.59,0.00038082,14]
[354613490,1740595915670,-500.0,0.00038082,14]
[354613492,1740595915681,-1162.07,0.00038082,14]
[354613494,1740595915692,-1175.03,0.00038082,14]
[354613496,1740595915703,-500.0,0.00038082,14]
[354613498,1740595915713,-1123.12,0.00038082,14]
[354613500,1740595915723,-1360.38,0.00038082,14]
[354613502,1740595915734,-990.04,0.00038082,14]
[354613504,1740595915744,-235.82956456,0.00038082,14]
[354613506,1740595915755,-500.0,0.00038082,14]
[354613508,1740595915765,-758.81,0.00038082,14]
[354613510,1740595915774,-1858.11,0.00038082,14]
[354613512,1740595915784,-836.2,0.00038082,14]
[354613514,1740595915794,-743.78,0.00038082,14]
[354613516,1740595915804,-552.16,0.00038082,14]
[354613518,1740595915815,-957.01,0.00038082,14]
[354613520,1740595915825,-1949.61,0.00038082,14]
[354613522,1740595915836,-500.0,0.00038082,14]
[354613524,1740595915846,-1008.01,0.00038082,14]
[354613526,1740595915857,-1466.22,0.00038082,14]
[354613528,1740595915869,-1152.19,0.00038082,14]
[354613530,1740595915879,-500.0,0.00038082,14]
[354613532,1740595915891,-2482.2,0.00038082,14]
[354613534,1740595915902,-1828.52,0.00038082,14]
[354613536,1740595915913,-500.0,0.00038082,14]
[354613538,1740595915924,-527.63,0.00038082,14]
[354613540,1740595915934,-873.77,0.00038082,14]
[354613542,1740595915945,-1665.67,0.00038082,14]
[354613544,1740595915959,-500.0,0.00038082,14]
[354613546,1740595915969,-1934.6,0.00038082,14]
[354613548,1740595915979,-786.06,0.00038082,14]
[354613550,1740595915989,-1875.12,0.00038082,14]
[354613552,1740595916001,-1075.72,0.00038082,14]
[354613554,1740595916012,-554.85,0.00038082,14]
[354613556,1740595916024,-956.32,0.00038082,14]
[354613558,1740595916035,-1163.37,0.00038082,14]
[354613561,1740595916046,-500.0,0.00038082,14]
[354613563,1740595916056,-1037.67,0.00038082,14]
[354613564,1740595916066,-2110.11,0.00038082,14]
[354613567,1740595916076,-655.67,0.00038082,14]
[354613568,1740595916086,-519.01,0.00038082,14]
[354613571,1740595916097,-500.0,0.00038082,14]
[354613573,1740595916107,-754.12,0.00038082,14]
[354613575,1740595916118,-1595.01,0.00038082,14]
[354613576,1740595916128,-1351.39,0.00038082,14]
[354613579,1740595916138,-500.0,0.00038082,14]
[354613580,1740595916148,-978.64,0.00038082,14]
[354613582,1740595916157,-883.23,0.00038082,14]
[354613584,1740595916167,-544.48,0.00038082,14]
[354613587,1740595916178,-1282.93,0.00038082,14]
[354613589,1740595916188,-500.0,0.00038082,14]
[354613591,1740595916198,-1979.65,0.00038082,14]
[354613593,1740595916208,-500.0,0.00038082,14]
[354613595,1740595916218,-1465.82,0.00038082,14]
[354613597,1740595916228,-500.0,0.00038082,14]
[354613599,1740595916238,-1395.89,0.00038082,14]
[354613601,1740595916248,-854.86,0.00038082,14]
[354613603,1740595916258,-1505.0,0.00038082,14]
[354613605,1740595916269,-924.09,0.00038082,14]
[354613607,1740595916278,-711.08,0.00038082,14]
[354613609,1740595916288,-552.43,0.00038082,14]
[354613611,1740595916298,-895.76,0.00038082,14]
[354613613,1740595916308,-500.0,0.00038082,14]
[354613615,1740595916318,-483.56059718,0.00038082,14]
[354613617,1740595916327,-500.0,0.00038082,14]
[354613619,1740595916337,-932.59,0.00038082,14]
[354613621,1740595916347,-1558.86,0.00038082,14]
[354613623,1740595916357,-912.19,0.00038082,14]
[354613625,1740595916369,-551.46,0.00038082,14]
[354613627,1740595916379,-500.0,0.00038082,14]
[354613629,1740595916389,-3271.55,0.00038082,14]
[354613631,1740595916399,-3117.32,0.00038082,14]
[354613633,1740595916410,-500.0,0.00038082,14]
[354613635,1740595916420,-896.05,0.00038082,14]
[354613637,1740595916430,-1469.5,0.00038082,14]
[354613639,1740595916439,-500.0,0.00038082,14]
[354613641,1740595916450,-500.0,0.00038082,14]
[354613643,1740595916460,-500.0,0.00038082,14]
[354613645,1740595916470,-1970.34,0.00038082,14]
[354613647,1740595916480,-1219.67,0.00038082,14]
[354613649,1740595916490,-500.0,0.00038082,14]
[354613651,1740595916499,-500.0,0.00038082,14]
[354613653,1740595916509,-1258.23,0.00038082,14]
[354613655,1740595916519,-802.71,0.00038082,14]
[354613657,1740595916529,-1003.98,0.00038082,14]
[354613659,1740595916539,-1048.22,0.00038082,14]
[354613661,1740595916549,-500.0,0.00038082,14]
[354613664,1740595916560,-12754.69,0.00038082,14]
[354613666,1740595916571,-760.48,0.00038082,14]
[354613668,1740595916582,-500.0,0.00038082,14]
[354613670,1740595916592,-1559.74,0.00038082,14]
[354613672,1740595916604,-1039.17,0.00038082,14]
[354613674,1740595916617,-968.47,0.00038082,14]
[354613676,1740595916627,-975.3,0.00038082,14]
[354613678,1740595916638,-884.61,0.00038082,14]
[354613680,1740595916649,-581.51,0.00038082,14]
[354613682,1740595916659,-677.65,0.00038082,14]
[354613684,1740595916671,-559.35,0.00038082,14]
[354613686,1740595916681,-500.0,0.00038082,14]
[354613688,1740595916692,-1068.0,0.00038082,14]
[354613690,1740595916705,-1472.3,0.00038082,14]
[354613692,1740595916715,-1096.63,0.00038082,14]
[354613694,1740595916726,-882.85,0.00038082,14]
[354613697,1740595916736,-1708.56,0.00038082,14]
[354613699,1740595916747,-505.62,0.00038082,14]
[354613701,1740595916756,-500.0,0.00038082,14]
[354613703,1740595916766,-966.9,0.00038082,14]
[354613704,1740595916776,-1141.53,0.00038082,7]
[354613705,1740595916786,-1382.5,0.00038082,14]
[354613706,1740595916798,-811.04,0.00038082,14]
[354613707,1740595916808,-669.94,0.00038082,14]
[354613708,1740595916818,-691.77,0.00038082,14]
[354613709,1740595916828,-530.0,0.00038082,14]
[354613710,1740595916838,-1910.93,0.00038082,14]
[354613711,1740595916849,-500.0,0.00038082,14]